Cogmind - Beta 16.1 @@@ ROGUE MODE // 2026.04.10 @ 23:36:15 Player: Lazz Result: Destroyed by KV-LA4(R) with Subdweller Laser Performance ------------- Evolutions (0) 0 Regions Visited (2) 400 Robots Destroyed (13) 65 Value Destroyed (192) 192 Prototype IDs (0) 0 Alien Tech Used (0) 0 Bonus (0) 0 TOTAL SCORE: 657 Bonus ------- None Cogmind --------- Core Integrity 0/250 Matter 254/300 Energy 98/100 System Corruption 0% Temperature Cool (6) Movement Rolling (95) Location -10/Subcaves Parts ------- > --- POWER (1) -------- (None) > --- PROPULSION (2) --- Wheel Subdweller Monowheel > --- UTILITY (2) ------ (None) > --- WEAPON (2) ------- (None) > --- INVENTORY (5) ---- Carbon-fiber Leg Small Matter Pod (50) Mining Laser Peak State ------------ > --- POWER ------------ Light Angular Momentum Engine > --- PROPULSION ------- Carbon-fiber Leg Myomer Leg > --- UTILITY ---------- Scrap Shield > --- WEAPON ----------- Light Assault Rifle Subdweller Machine Gun > --- INVENTORY -------- Carbon-fiber Leg Small Matter Pod Mining Laser [Rating: 22] Favorites ----------- Power Ion Engine Engine Ion Engine Propulsion Light Treads Treads Light Treads Leg Carbon-fiber Leg Wheel Subdweller Monowheel Utility Small Storage Unit Device Seismic Detector Storage Small Storage Unit Protection Scrap Shield Weapon Light Assault Rifle Ballistic Gun Light Assault Rifle Ballistic Cannon Bore Cannon Build | -11 -10 -10 ------- Run | Yrd Mat Sub Slots Evolved . | . . . Power . | . . . Propulsion . | . . . Utility . | . . . Weapon . | . . . Parts Attached 17 | 7 . 10 Power 2 | 1 . 1 Engine 2 | 1 . 1 Core . | . . . Reactor . | . . . Propulsion 7 | 2 . 5 Treads 2 | 2 . . Leg 3 | . . 3 Wheel 2 | . . 2 Hover . | . . . Flight . | . . . Utility 3 | 2 . 1 Device 1 | 1 . . Storage 1 | 1 . . Processor . | . . . Hackware . | . . . Protection 1 | . . 1 Artifact . | . . . Weapon 5 | 2 . 3 Energy Gun . | . . . Energy Cannon . | . . . Ballistic Gun 4 | 2 . 2 Ballistic Cannon 1 | . . 1 Launcher . | . . . Special Weapon . | . . . Impact Weapon . | . . . Slashing Weapon . | . . . Piercing Weapon . | . . . Special Melee Weapon . | . . . Unidentified Prototypes . | . . . Parts Lost 12 | . . 12 Power 2 | . . 2 Propulsion 3 | . . 3 Utility 2 | . . 2 Weapon 5 | . . 5 Highest Loss Streak 12 | . . 12 To Critical Strikes 1 | . . 1 Average Backups 4 | 3 6 5 Power . | . . . Propulsion . | . 1 . Utility 2 | 1 3 2 Weapon 1 | . 2 1 Tool/Special . | . . . Unused Backups 4 | . . 4 Power . | . . . Propulsion . | . . . Utility 3 | . . 3 Weapon 1 | . . 1 Tool/Special . | . . . Average Slot Usage (%) 84 | . 100 78 Engine 10 | . 14 9 Treads 19 | . 28 16 Leg 3 | . . 5 Wheel 2 | . . 4 Device 9 | . 14 8 Storage 10 | . 14 8 Ballistic Gun 23 | . 28 21 Peak Build Rating 22 | 7 7 22 Average Rating 7 | 6 7 8 On Entrance 4 | . 7 7 Avg Prop Armor Cover (%) . | . . . Naked Turns . | . . . Heaviest Build 29 | 14 14 29 Greatest Support 40 | 40 40 40 Greatest Overweight (x) . | . . . Average Overweight (x) . | . . . Largest Inventory Capacity 8 | 8 8 8 Average Capacity 7 | 7 8 6 Most Carried 8 | 6 6 8 Average Carried 4 | 3 6 5 Final Capacity 8 | 8 8 5 Final Carried 6 | 6 6 3 Class Distribution -------------------- 100% | Mutant Dominant Class ---------------- Mutant | -10/Materials Mutant | -10/Subcaves Resources | -11 -10 -10 ----------- Run | Yrd Mat Sub Matter Collected 566 | 444 . 122 Remotely . | . . . Salvage Created 366 | 218 . 148 Parts 26 | 14 . 12 Haulers Intercepted . | . . . Recyclers Shooed . | . . . Parts Field Recycled . | . . . Retrieved Matter . | . . . Parts Self-Destructed 8 | . . 8 Prevented . | . . . Parts Restored . | . . . Kills | -11 -10 -10 ------- Run | Yrd Mat Sub Combat Hostiles Destroyed 6 | . . 6 Guns 4 | . . 4 Cannons 2 | . . 2 Classes Destroyed 5 | 3 . 2 Worker 1 | 1 . . Tunneler 5 | 5 . . Recycler 1 | 1 . . Swarmer 3 | . . 3 Subdweller 3 | . . 3 Best Kill Streak 2 | 2 . 2 Combat Bots Only 2 | . . 2 Max Kills in Single Turn 1 | 1 . 1 Gunslinging . | . . . Exploded . | . . . Melee . | . . . Uniques/NPCs Destroyed . | . . . Combat | -11 -10 -10 -------- Run | Yrd Mat Sub Hostile Shots Fired 130 | . . 130 Missed 35 | . . 35 Hits 95 | . . 95 Projectile 95 | . . 95 Critical Strikes 2 | . . 2 Damage Taken 1692 | . . 1692 Core 261 | . . 261 Absorbed by Shields . | . . . Core Remaining (%) 100 | 100 . . Volleys Fired 57 | 31 . 26 Largest 2 | 2 . 2 Hottest 78 | 40 . 78 Shots Fired 105 | 62 . 43 Gun 96 | 62 . 34 Cannon 9 | . . 9 Launcher . | . . . Special . | . . . Kinetic 105 | 62 . 43 Thermal . | . . . Explosive . | . . . Electromagnetic . | . . . Robot Hit Streak 13 | 5 . 13 Robot Miss Streak 3 | 3 . 2 Penetration Max . | . . . Secondary Targets 3 | . . 3 Max Gunslinging Chain 1 | . . 1 Shots Hit Robots 64 | 30 . 34 Core Hits 23 | 13 . 10 Critical Kills 2 | . . 2 Critical Parts Destroyed 1 | 1 . . Critical Strikes 5 | 1 . 4 Destroy 5 | 1 . 4 Melee Attacks . | . . . Impact . | . . . Slashing . | . . . Piercing . | . . . Sneak Attacks . | . . . Combat Hostiles . | . . . Follow-up Attacks . | . . . Damage Inflicted 795 | 313 . 482 Guns 660 | 313 . 347 Cannons 135 | . . 135 Explosions . | . . . Melee . | . . . Ramming . | . . . Kinetic 795 | 313 . 482 Thermal . | . . . Explosive . | . . . Electromagnetic . | . . . Impact . | . . . Slashing . | . . . Piercing . | . . . Highest Corruption . | . . . Average Corruption . | . . . Corruption Purged . | . . . Corruption Blocked . | . . . Overload Shots . | . . . Overflow Damage . | . . . Projectiles . | . . . Explosions . | . . . Melee . | . . . Knockbacks 2 | . . 2 Impact . | . . . Kinetic 2 | . . 2 Secondary . | . . . Self-Inflicted Damage . | . . . Shots . | . . . Rammed . | . . . Targets Rammed . | . . . Kicked . | . . . Crushed . | . . . Highest Temperature . | . . . Average Temperature . | . . . Received Heat Transfer 261 | . . 261 Siege Activations . | . . . Martial Activations . | . . . Shielding Activations . | . . . Robots Disrupted . | . . . Combat Hostiles . | . . . Robots Corrupted . | . . . Combat Hostiles . | . . . Parts Fried . | . . . Impact Corruptions . | . . . Robots Melted . | . . . Combat Hostiles . | . . . Parts Melted . | . . . Heat Transferred . | . . . Parts Sabotaged . | . . . Parts Stolen . | . . . Parts Stripped . | . . . Power Chain Reactions . | . . . Alert | -11 -10 -10 ------- Run | Yrd Mat Sub Maximum Alert Level . | . . . Low Security (%) 100 | 100 100 . Level 1 . | . . . Level 2 . | . . . Level 3 . | . . . Level 4 . | . . . Level 5 . | . . . High Security . | . . . Max Security . | . . . Peak Influence 10 | 10 . . Initial . | . . . Average 1 | 1 . . Influence Increases 105 | 35 . 70 Destroy 0b10 Robot/C 60 | . . 60 Destroy 0b10 Robot/NC 35 | 35 . . Destroy Leader 10 | . . 10 Influence Decreases 105 | 35 . 70 Time Decay 45 | 35 . 10 Lost Part 60 | . . 60 Squads Dispatched . | . . . Investigation . | . . . Extermination . | . . . Reinforcement . | . . . Assault . | . . . Garrison . | . . . Intercept . | . . . Searches Triggered . | . . . Construction Impeded . | . . . Haulers Reinforced . | . . . Active Scanning Responses . | . . . Cargo Convoy Interrupts . | . . . Stealth | -11 -10 -10 --------- Run | Yrd Mat Sub Distress Signals . | . . . Communications Jammed . | . . . Distress Signals . | . . . Times Spotted 13 | . . 13 Peak Tracking Total 9 | . . 9 Tactical Retreats 1 | . . 1 Traps | -11 -10 -10 ------- Run | Yrd Mat Sub Traps Triggered . | . . . Indirectly . | . . . Trap Hack Attempts . | . . . Triggered . | . . . Disarmed . | . . . Reprogrammed . | . . . Reused . | . . . Traps Extracted . | . . . Installed . | . . . Triggered . | . . . Machines | -11 -10 -10 ---------- Run | Yrd Mat Sub Machines Disabled . | . . . Max in Single Turn . | . . . Machines Repaired . | . . . Machines Dismantled . | . . . Machines Sabotaged . | . . . Overloaded Fab Kills . | . . . Hacking | -11 -10 -10 --------- Run | Yrd Mat Sub Machines Accessed . | . . . Terminals . | . . . Fabricators . | . . . Repair Stations . | . . . Recycling Units . | . . . Scanalyzers . | . . . Garrison Access . | . . . Total Hacks . | . . . Successful . | . . . Failed . | . . . Catastrophic . | . . . Database Lockouts . | . . . Manual . | . . . Terminals . | . . . Fabricators . | . . . Repair Stations . | . . . Recycling Units . | . . . Scanalyzers . | . . . Garrison Access . | . . . Terminal Hacks . | . . . Fabricator Hacks . | . . . Repair Station Hacks . | . . . Recycling Unit Hacks . | . . . Scanalyzer . | . . . Garrison Access Hacks . | . . . Unauthorized Hacks . | . . . Terminals . | . . . Fabricators . | . . . Repair Stations . | . . . Recycling Units . | . . . Scanalyzers . | . . . Garrison Access . | . . . Data Cores Recovered . | . . . Used . | . . . Hacking Detections . | . . . Full Trace Events . | . . . Feedback Events . | . . . Feedback Blocked . | . . . Robot Schematics Acquired . | . . . Robots Built . | . . . Authchips . | . . . Time . | . . . Total Robot Build Rating . | . . . Part Schematics Acquired . | . . . Parts Built . | . . . Authchips . | . . . Time . | . . . Total Part Build Rating . | . . . Part Studies Acquired . | . . . Parts Repaired . | . . . Time . | . . . Parts Recycled . | . . . Recycled Matter . | . . . Retrieved Matter . | . . . Retrieved Components . | . . . Parts Scanalyzed . | . . . Part Schematics Acquired . | . . . Parts Damaged . | . . . Bothacking | -11 -10 -10 ------------ Run | Yrd Mat Sub Used RIF Installer . | . . . Robots Hacked . | . . . Non-combat . | . . . Combat . | . . . Robot Hacks Applied . | . . . Relay Couplers Released . | . . . Fabnet Peak Effective % . | . . . Robots Rewired . | . . . Allies Hacked . | . . . Hacks Repelled . | . . . Allies | -11 -10 -10 -------- Run | Yrd Mat Sub Total Allies . | . . . Largest Group . | . . . Highest-Rated Group . | . . . Highest-Rated Ally . | . . . Total Orders . | . . . Ally Attacks . | . . . Total Damage . | . . . Kills . | . . . Allies Corrupted . | . . . Allies Melted . | . . . Intel | -11 -10 -10 ------- Run | Yrd Mat Sub Active Infowar (turns) 458 | 179 110 169 Seismic 458 | 179 110 169 Robot Analysis Total . | . . . Derelict Logs Recovered 1 | . . 1 Drone Launches . | . . . Drone Recoveries . | . . . Exploration | -11 -10 -10 ------------- Run | Yrd Mat Sub Turns Passed 660 | 255 110 295 Spaces Moved 257 | 93 20 144 Core 4 | 4 . . Treads 202 | 89 20 93 Legs 8 | . . 8 Wheels 43 | . . 43 Hover . | . . . Flight . | . . . Fastest Speed 50 | 50 160 95 Average Speed 146 | 155 160 138 Slowest Speed 160 | 160 160 160 Overloaded Moves . | . . . Propulsion Burnouts . | . . . Robots Hopped . | . . . Potential Cave-ins . | . . . Cave-ins Triggered . | . . . Exploration Rate (%) 8 | 5 7 14 Regions Visited 2 Branch Regions 1 Pre-discovered Areas 1 | . . 1 Known Exits Taken . | . . . Unknown Exits Taken 2 | 1 1 . Scrap Searched . | . . . Spaces Dug . | . . . Terrain Destroyed 4 | . . 4 Melee . | . . . Projectile 4 | . . 4 AOE . | . . . Terrain Rammed . | . . . Walls Destroyed . | . . . Machines Disabled . | . . . Actions | -11 -10 -10 --------- Run | Yrd Mat Sub Total 442 | 144 98 200 Wait 97 | 8 79 10 Move 255 | 92 19 144 Hop . | . . . Pick Up 10 | 6 . 4 Fast Attach 12 | 7 . 5 Attach 5 | . . 5 Detach 1 | . . 1 Swap . | . . . Drop 5 | . . 5 Fire 57 | 31 . 26 Melee . | . . . Ram . | . . . Kick . | . . . Crush . | . . . Escape Stasis . | . . . Rewire . | . . . Trap . | . . . Miscellaneous . | . . . Route ------- -11/Scrapyard -10/Materials -10/Subcaves History --------- Turn | Location | Event 6 | -11/Scrapyard | Discovered new exit (range 15) 256 | -11/Scrapyard | Entered Materials 314 | -10/Materials | Build established: Mutant 355 | -10/Materials | Discovered new exit (range 8) 366 | -10/Materials | Entered Subcaves 376 | -10/Subcaves | Learned location of Storage (-8) 522 | -10/Subcaves | Ambushed by swarm of Subdwellers 588 | -10/Subcaves | Lost 4 allies 589 | -10/Subcaves | Core integrity fell below 50% 633 | -10/Subcaves | Core integrity fell below 20% 651 | -10/Subcaves | Lost 12 parts (2p3n2u5w) 661 | -10/Subcaves | Destroyed by KV-LA4(R) with Subdweller Laser Last Messages --------------- 00600_ 2I-6IO(R) knocked back. 00603_ Subatomizers dissect the Disposable Heat Sink. 00604_ HV Slug penetrates LI-BOL(R). 00604_ LI-BOL(R) destroyed. 00606_ Acquired 17 matter. 00609_ HV Slug penetrates 2I-6IO(R). 00609_ 2I-6IO(R) suffers critical hit (Destroy). 00609_ HV Slug penetrates Wall. 00613_ KV-LA4(R) knocked back. 00615_ Broken Sub. Machine Gun destroyed. 00617_ Acquired Sub. Monowheel. 00618_ Subatomizers dissect the Disposable Heat Sink. 00620_ Bore Cannon destroyed. 00620_ Acquired Wheel. 00624_ 2I-6IO(R) affixes Scrap Shield Fragment to Scrap Shield. 00625_ Acquired 11 matter. 00626_ Acquired 17 matter. Map ----- +----------------------------------------------------+ | ??????????????????????????????????????????? | | ?????????? #???????????????????????????? | | ?????????? ##?????????????????????????? | | ??????????? ????#####????????????????? | | ???????????? ???## ##???????????????? | | ????????????# ???# #???????????????? | | ???????????## ???# #???????????????? | | ??????????## ???# ##??????????????? | | ?????????## ???# #??????????????? | | ?????????# #### #??????????????? | | ?????????# #??????????????? | | ?????????# #??????????????? | | ??????###### ## ## #??????????????? | | ?????## ######## #####R #??????????????? | | ????## ## ## ##???# #??????????????? | | ???## # #??## ##??????????????? | | #??# ## # #### ##??????????????? | | ### ### ## #??????????????? | | ###?# ## #??????????????? | | #???## ## ##??????????????? | | # #????## # ### ##??????????????? | | ## #?????# ## #??????????????? | | ?# ##??#??# ## ##??????????????? | | ?## &#?? #??# ## #??????????????? | | ####*]###"#??## ### ##??????????????? | | ##!!%!""#???## #?# @#???????????????? | | #% *!##????## #?# #??????????????? | | ## !%%#??????# ?## #??????????????? | | &# !*[#?????? ??# #??????????????? | | &!!%%&[##??????""" #? ##??????????????? | | !!%!###??????? "###? #???????????????? | | "####???????????????"### ???????????????? | | %#???????????????????"???#???????????????? | | #???????????????????# ???????????????????? | | ##???????????????????"????????????????????? | | ??????????????????????????????????????????? | | ??????????????????????????????????????????? | | ??????????????????????????????????????????? | | ??????????????????????????????????????????? | | ??????????????????????????????????????????? | | ??????????????????????????????????????????? | | #?????????????????????????????????????????? | | #????????????????????????????????????????? | | ????????????????????????????????????????? | | ????????????????????????????????????????? | | #?????????????????????????????????????????? | | #?????????????????????????????????????????? | | ??????????????????????????????????????????? | | ??????????????????????????????????????????? | | ??????????????????????????????????????????? | +----------------------------------------------------+ Best States ------------- Heat Dissipation 25 Energy Generation 18 Energy Capacity 250 Matter Stores 300 Matter Capacity 300 Sight Range 16 Terrain Scan Density 10 Armor Coverage 800 Evasion (%) 41 Recoil Reduction 2 Item Schematics ----------------- None Robot Schematics ------------------ None Fabricated ------------ Nothing Repaired ---------- Nothing Studied --------- None Alien Tech Used ----------------- None Achievements -------------- None Challenges ------------ None Game ------ Seed AssaultFireBallwheel Manual? 0 Play Time 00:05:42 Cumulative 166.4 hours Start 2026.04.10 @ 23:30:46 End 2026.04.10 @ 23:36:15 Sessions 1 Manual Loads 0 Difficulty Rogue Special Mode None Game No. 238 Rogue 238 Adventurer 0 Explorer 0 Win Type - Total 2 Types 1/0/0/1/0/0/0/0/0/0 Lore% 70 Gallery% 58 Achievement% 45 Wizard Run 0 Options --------- Layout 2 ASCII 0 Keyboard 0 Movement Mouse Keybinds 0 Fullscreen 1 Font 24/Smallcaps Map View 50x44 Zoom Use 0% Tactical HUD 1 Map Filters NONE Filters NONE Steam 1 RUN: 11fc0cdf-528e-40e8-bb65-a803a4bbe9af